bitfinex/quotes_ETHUSD_20240714
["timestamp","ask_amount","ask_price","bid_price","bid_amount"]
[1720971203079,1.08381494,3197.0,3196.6,2.50263]
[1720971203254,1.08381494,3197.1,3196.5,2.50267]
[1720971203457,1.47522019,3197.0,3196.5,5.00533]
[1720971203657,1.0838419,3196.9,3196.5,5.00533]
[1720971203852,0.39137829,3197.0,3196.5,2.50266]
[1720971204163,0.39137829,3197.0,3196.6,2.50262]
[1720971204495,1.08384742,3196.9,3196.6,2.50262]
[1720971204665,0.32777793,3197.2,3196.6,2.50262]
[1720971204987,1.08380195,3197.1,3196.7,2.50257]
[1720971205188,0.32777793,3197.2,3196.7,2.50257]
[1720971205189,1.08380195,3197.0,3196.8,2.50249]
[1720971205486,0.32777793,3197.2,3196.8,2.50249]
[1720971205699,1.08375917,3197.1,3196.8,2.50249]
[1720971205860,1.08375917,3197.0,3196.8,2.50249]
[1720971206058,1.08375917,3197.1,3196.9,2.50237]
[1720971206263,2.3612,3197.6,3196.9,0.500486]
[1720971206602,1.08369729,3197.5,3197.1,2.50225]
[1720971206887,1.08369729,3197.4,3197.1,2.50225]
[1720971207105,1.08369729,3197.3,3197.1,2.50225]
[1720971207282,2.82954406,3197.8,3197.1,2.50225]
[1720971207457,1.08367679,3197.7,3197.1,2.50225]
[1720971207656,1.08367679,3197.6,3197.1,2.50225]
[1720971207857,1.08367679,3197.5,3197.1,2.50225]
[1720971208087,1.08367679,3197.4,3197.1,2.50225]
[1720971208294,1.08367679,3197.3,3197.1,2.50225]
[1720971208454,2.82954406,3197.8,3197.1,2.50225]
[1720971208660,1.08365518,3197.7,3197.1,2.50225]
[1720971208872,1.08365518,3197.6,3197.1,2.50225]
[1720971209066,1.08365518,3197.5,3197.1,2.50225]
[1720971209266,1.08365518,3197.4,3197.1,2.50225]
[1720971209470,1.08365518,3197.3,3197.1,2.50225]
[1720971209684,2.50181,3197.7,3197.1,2.50225]
[1720971209890,1.69369744,3197.6,3197.1,2.50225]
[1720971210091,1.08363899,3197.5,3197.1,2.50225]
[1720971211064,1.08363899,3197.6,3197.1,2.50225]
[1720971211266,1.08363899,3197.5,3197.1,2.50225]
[1720971211575,1.08363899,3197.4,3197.1,2.50225]
[1720971211772,0.32777406,3197.8,3197.2,5.00436]
[1720971211773,1.08363899,3197.3,3197.2,5.00436]
[1720971212101,1.93855656,3198.9,3197.6,2.50186]
[1720971212102,4.90329,3198.3,3197.6,2.50186]
[1720971212417,1.08348961,3198.2,3197.6,2.50186]
[1720971212559,1.08348961,3198.1,3197.7,2.50178]
[1720971212762,1.08348961,3198.0,3197.7,2.50178]
[1720971212960,2.4019,3198.3,3197.7,2.50178]
[1720971212961,1.08348961,3197.9,3197.7,2.50178]
[1720971213192,1.08348961,3198.2,3197.7,2.50178]
[1720971213357,2.4019,3198.3,3197.7,2.50178]
[1720971213358,1.08348961,3198.1,3197.7,2.50178]
[1720971213565,1.08348961,3198.0,3197.7,2.50178]
[1720971213786,2.4019,3198.3,3197.6,2.50186]
[1720971213787,1.08346586,3197.9,3197.8,2.50171]
[1720971214102,2.4019,3198.3,3197.8,2.50171]
[1720971214314,1.08336658,3198.2,3197.9,2.50164]
[1720971214602,1.08336658,3198.1,3198.0,2.50154]
[1720971214765,1.08336658,3198.3,3198.0,2.50154]
[1720971215101,1.08336658,3198.2,3198.0,2.47654]
[1720971215297,1.08336658,3198.1,3198.0,2.47654]
[1720971215603,1.08336658,3198.3,3198.0,2.47654]
[1720971215786,1.08336658,3198.2,3198.0,4.88834]
[1720971215963,1.08336658,3198.3,3198.0,0.739005]
[1720971216273,4.90253,3199.2,3198.0,2.50152]
[1720971216274,0.32763345,3198.9,3198.0,2.50152]
[1720971216465,0.32763345,3198.9,3198.3,2.50131]
[1720971216466,1.08327052,3198.8,3198.3,2.50131]
[1720971216656,0.32763345,3198.9,3198.3,2.50131]
[1720971216657,1.08327052,3198.7,3198.3,2.50131]
[1720971216875,1.08324908,3198.6,3198.3,2.50131]
[1720971217071,1.08324908,3198.5,3198.1,2.50141]
[1720971217306,0.32763345,3198.9,3198.1,2.50141]
[1720971217499,1.36612398,3198.8,3198.1,2.50141]
[1720971217690,1.08327563,3198.7,3198.1,2.50141]
[1720971219688,2.4019,3198.6,3198.1,2.50141]
[1720971219916,2.4019,3198.6,3197.7,2.4118]
[1720971219917,4.90299,3198.6,3197.7,2.50174]
[1720971220063,1.57360783,3198.5,3197.8,2.50171]
[1720971220262,2.50149,3198.1,3197.5,8.06206755]
[1720971220565,2.4019,3198.2,3197.3,2.50205]
[1720971220566,4.90337,3198.2,3197.3,2.50205]
[1720971220771,3.58498101,3198.1,3197.4,2.50201]
[1720971220982,2.50148,3198.1,3197.4,2.50201]
[1720971221183,4.32556379,3198.0,3197.2,16.83100905]
[1720971221387,1.08350879,3197.9,3197.2,16.83100905]
[1720971221587,3.58515879,3197.9,3197.2,16.83100905]
[1720971221906,3.58523879,3197.8,3197.2,16.83100905]
[1720971222198,1.44215415,3197.7,3197.2,16.83100905]
[1720971222415,3.48552958,3197.6,3197.2,16.83100905]
[1720971222568,2.4019,3197.6,3197.2,16.83100905]
[1720971222764,1.08365136,3197.5,3197.2,16.83100905]
[1720971222977,2.4019,3197.6,3197.2,16.83100905]
[1720971223179,1.60987664,3197.5,3197.2,16.83100905]
[1720971223410,0.52622139,3197.5,3197.2,16.83100905]
[1720971224030,2.4019,3197.9,3197.2,16.83100905]
[1720971224217,1.08361463,3197.8,3197.2,16.83100905]
[1720971224512,1.08361463,3197.7,3197.2,16.83100905]
[1720971224812,1.08361463,3197.6,3197.2,16.83100905]
[1720971224971,1.08361463,3197.5,3197.2,16.83100905]
[1720971225171,2.50177,3197.8,3197.1,2.50223]
[1720971225172,1.08361463,3197.7,3197.1,2.50223]
[1720971225479,0.35853846,3197.6,3197.1,2.50223]
[1720971225675,1.08361463,3197.5,3197.1,2.50223]
[1720971226694,0.35853846,3197.6,3197.1,2.50223]
[1720971226870,1.08360833,3197.5,3197.1,2.50223]
[1720971227312,1.08360833,3197.5,3196.9,2.50241]
[1720971227480,1.08360833,3197.5,3197.0,2.50234]
[1720971227682,1.08360833,3197.5,3196.7,4.99206755]
[1720971227922,1.47800701,3197.5,3196.7,4.99206755]
[1720971228119,1.08360833,3197.4,3196.7,4.99206755]
[1720971228724,1.08360833,3197.4,3196.9,2.50235]
[1720971228919,1.08360833,3197.4,3196.7,7.49458755]
[1720971229147,4.78501,3197.3,3196.7,4.99206755]
[1720971229444,2.50232,3197.1,3196.7,4.99206755]
[1720971229751,1.08360833,3197.0,3196.7,4.99206755]
[1720971230051,1.08389353,3196.9,3196.7,4.99206755]
[1720971230405,1.08389353,3196.8,3196.7,7.49464755]
[1720971230606,1.08389353,3196.8,3196.5,2.50267]
[1720971230803,1.08389353,3196.7,3196.5,2.50267]
[1720971231004,0.49105596,3197.2,3196.5,2.50267]
[1720971231247,1.08380493,3197.1,3196.5,2.50267]
[1720971231420,1.08380493,3197.0,3196.5,2.50267]
[1720971231616,1.08380493,3196.9,3196.5,2.50267]
[1720971231928,1.08380493,3196.8,3196.6,2.50263]
[1720971232109,1.08380493,3197.1,3196.6,2.50263]
[1720971232310,1.08380493,3197.0,3196.6,2.50263]
[1720971232511,1.08380493,3197.1,3196.5,2.50267]
[1720971232714,1.08380493,3197.0,3196.5,2.50267]
[1720971233158,1.08382133,3196.9,3196.5,2.50267]
[1720971233445,1.08382133,3196.8,3196.5,2.50267]
[1720971233747,1.08382133,3196.7,3196.5,2.50267]
[1720971233949,2.99325596,3197.2,3196.5,2.50267]
[1720971234244,1.41592741,3197.1,3196.5,2.50267]
[1720971234451,1.0838266,3197.0,3196.5,2.50267]
[1720971235223,1.0838266,3197.0,3196.7,2.50253]
[1720971235425,1.0838266,3197.1,3196.7,2.50253]
[1720971235664,1.0838266,3197.0,3196.7,5.00504]
[1720971235819,1.0838266,3196.9,3196.7,5.00504]
[1720971236157,0.49105596,3197.2,3196.8,2.5025]
[1720971236615,1.08375988,3197.1,3196.9,2.5024]
[1720971236814,0.49105596,3197.2,3197.1,2.50226]
[1720971237255,1.57470733,3197.2,3197.1,2.50226]
[1720971238227,1.57470733,3197.2,3197.1,5.00452]
[1720971238439,0.49105596,3197.2,3197.1,5.00452]
[1720971240417,0.15345498,3197.2,3197.1,10.32008]
[1720971240622,1.63702593,3198.4,3197.2,2.50217]
[1720971240823,1.08346651,3198.3,3197.8,2.50167]
[1720971241046,1.08346651,3198.2,3197.9,2.50162]
[1720971241219,1.08346651,3198.1,3197.3,2.50209]
[1720971241453,3.36636651,3198.0,3197.4,2.50203]
[1720971241623,1.08346651,3197.9,3197.4,2.50203]
[1720971242132,1.08348713,3197.8,3197.4,2.50203]
[1720971242350,1.08348713,3197.7,3197.4,2.50203]
[1720971242525,3.33261726,3198.0,3197.4,2.50203]
[1720971242526,1.08348713,3197.9,3197.4,2.50203]
[1720971242726,1.08348713,3197.8,3197.4,2.50203]
[1720971242922,1.08348713,3197.9,3197.4,2.50203]
[1720971245371,3.33261726,3198.0,3197.4,2.50203]
[1720971245544,1.08351207,3197.9,3197.5,2.50195]
[1720971245729,4.13951909,3198.1,3197.5,2.50195]
[1720971245730,1.63797703,3198.1,3197.5,5.00382]
[1720971245927,1.08347763,3198.0,3197.5,5.00382]
[1720971246139,1.08347763,3197.9,3197.6,2.50187]
[1720971246355,1.08347763,3197.8,3197.6,2.50187]
[1720971246731,1.08347763,3197.7,3197.6,2.50187]
[1720971248528,1.63810052,3198.1,3197.6,2.50187]
[1720971248529,1.63824798,3198.1,3197.6,2.50187]
[1720971248863,1.08344962,3198.0,3197.6,2.50187]
[1720971249168,1.08344962,3197.9,3197.6,2.50187]
[1720971249370,1.08344962,3198.0,3197.5,2.50187]
[1720971249841,1.63824798,3197.9,3197.4,2.50202]
[1720971250175,1.08344962,3197.8,3197.4,2.50202]
[1720971250330,2.7216976,3197.9,3197.4,2.50202]
[1720971250530,1.08344962,3197.8,3197.4,2.50202]
[1720971250759,1.08344962,3197.8,3197.2,7.49423755]
[1720971250760,2.2985,3197.7,3197.2,4.99206755]
[1720971251030,1.63824798,3197.5,3197.0,2.50227]
[1720971251232,1.08344962,3197.4,3197.0,2.50227]
[1720971251435,2.7216976,3197.4,3197.1,2.50225]
[1720971251739,1.08344962,3197.3,3197.1,2.50225]
[1720971251945,0.27216976,3197.3,3196.5,3.07]
[1720971252135,1.63922487,3197.0,3196.4,4.99206755]
[1720971252333,1.08371691,3196.9,3196.4,4.99206755]
[1720971252533,1.08371691,3196.9,3196.4,7.49487755]
[1720971252767,1.08371691,3196.9,3196.4,4.99206755]
[1720971253130,2.72294178,3196.9,3196.4,4.99206755]
[1720971253346,1.08371691,3196.8,3196.4,7.49486755]
[1720971253542,1.08371691,3196.9,3196.4,7.49486755]
[1720971253765,1.08371691,3196.8,3196.4,7.49486755]
[1720971253967,1.08371691,3196.9,3196.4,7.49486755]
[1720971254184,1.08371691,3196.8,3196.4,8.49464231]
[1720971254333,1.08371691,3197.0,3196.7,2.50258]
[1720971254532,1.08371691,3196.9,3196.7,2.50258]
[1720971254774,1.08371691,3197.1,3196.7,2.50258]
[1720971255072,2.50204,3197.4,3196.7,2.50258]
[1720971255367,1.63907476,3197.1,3196.4,7.49485755]
[1720971255531,1.63907476,3197.1,3196.5,2.50272]
[1720971255532,1.08382479,3197.0,3196.5,2.50272]
[1720971256168,1.08382479,3197.1,3196.5,2.50272]
[1720971256373,1.08382479,3197.0,3196.5,2.50272]
[1720971256546,1.08382479,3196.9,3196.5,2.50272]
[1720971256734,1.08382479,3196.8,3196.5,2.50272]
[1720971256941,1.08382479,3196.7,3196.6,2.5026]
[1720971257152,1.08382479,3196.7,3196.6,3.50234576]
[1720971257946,1.08382479,3196.7,3196.6,6.00499576]
[1720971258166,1.63907476,3197.3,3196.9,2.50238]
[1720971258438,1.63907476,3197.3,3196.8,2.50249]
[1720971258439,1.08376496,3197.2,3196.8,2.50249]
[1720971258633,1.08376496,3197.1,3196.8,2.50249]
[1720971258881,1.08376496,3197.0,3196.8,2.50249]
[1720971259090,1.08376496,3196.9,3196.8,2.50249]
[1720971261677,0.32776078,3197.4,3196.8,2.50249]
[1720971261994,2.72232968,3197.3,3196.8,2.50249]
[1720971262177,1.08373386,3197.2,3196.8,2.50249]
[1720971262478,1.08373386,3197.1,3196.8,2.50249]
[1720971262656,1.08373386,3197.0,3196.8,2.50249]
[1720971262861,1.08373386,3196.9,3196.8,2.50249]
[1720971264948,1.63953155,3197.2,3196.9,2.50237]
[1720971265276,1.08372687,3197.1,3196.9,2.50237]
[1720971265500,1.08372687,3197.0,3196.9,2.50237]
[1720971265963,1.08372687,3197.1,3196.7,2.50255]
[1720971266165,1.08372687,3197.0,3196.7,2.50255]
[1720971266702,2.72325842,3197.0,3196.4,2.5028]
[1720971266905,2.72325842,3196.9,3196.5,2.50273]
[1720971267214,1.08372687,3196.8,3196.5,2.50273]
[1720971268005,5.07965842,3196.8,3196.3,2.50289]
[1720971268314,2.3564,3196.8,3196.4,2.50281]
[1720971268527,1.0839054,3196.7,3196.4,2.50281]
[1720971268796,3.99659509,3196.8,3196.4,2.50281]
[1720971268797,1.08390298,3196.6,3196.4,2.50281]
[1720971269003,1.08390298,3196.5,3196.4,2.50281]
[1720971269311,1.08390298,3196.5,3196.4,3.00338]
[1720971269509,1.08390298,3196.5,3196.0,4.99206755]
[1720971269510,1.08390298,3196.5,3196.0,7.49516755]
[1720971269807,1.08390298,3196.4,3196.0,7.49516755]
[1720971270007,1.08390298,3196.6,3196.0,7.49516755]
[1720971270867,1.08390298,3196.5,3196.0,7.49516755]
[1720971271092,2.72397041,3196.7,3196.0,7.49513755]
[1720971271268,1.08390298,3196.6,3196.0,7.49513755]
[1720971271469,4.85914,3196.5,3196.0,4.99206755]
[1720971271706,1.08399634,3196.4,3196.0,4.99206755]
[1720971272470,2.72356167,3196.4,3196.0,4.99206755]
[1720971272787,2.72356167,3196.4,3195.7,2.50335]
[1720971272788,1.08399634,3196.3,3195.7,2.50335]
[1720971273506,5.22652167,3196.3,3195.6,4.50108765]
[1720971273676,3.24621384,3196.2,3195.6,4.50108765]
[1720971273999,2.72356167,3196.1,3195.6,4.50108765]
[1720971274205,1.08399634,3196.0,3195.6,4.50108765]
[1720971274419,2.3564,3195.9,3195.6,4.50108765]
[1720971274709,1.08399634,3195.8,3195.6,4.50108765]
[1720971274922,1.59230158,3195.7,3195.6,4.50108765]
[1720971275075,3.23067326,3195.7,3195.6,4.50108765]
[1720971275278,1.59230158,3195.7,3195.6,4.50108765]
[1720971276272,1.08430541,3195.7,3195.6,4.50108765]
[1720971278309,1.08420242,3195.7,3195.6,4.50108765]
[1720971278775,1.08420242,3195.7,3195.3,2.50364]
[1720971278975,1.08420242,3195.6,3195.3,2.50364]
[1720971279185,1.08420242,3195.8,3195.3,2.50364]
[1720971279977,2.3564,3195.9,3195.3,2.50364]
[1720971280182,1.08418865,3195.8,3195.3,2.50364]
[1720971280708,1.08418865,3195.8,3195.4,2.50359]
[1720971281095,2.3564,3195.9,3195.4,2.50359]
[1720971281507,1.08420488,3195.8,3195.4,2.50359]
[1720971281709,1.08420488,3195.7,3195.4,2.50359]
[1720971281920,1.08420488,3195.6,3195.4,2.50359]
[1720971282086,2.3564,3195.9,3195.4,2.50359]
[1720971282283,1.08418687,3195.8,3195.5,2.50351]
[1720971282610,1.08419788,3195.7,3195.3,2.50364]
[1720971282777,1.08419788,3195.6,3195.3,2.50364]
[1720971283104,2.3564,3195.9,3195.2,2.50374]
[1720971283105,1.08425955,3195.5,3195.2,2.50374]
[1720971283318,2.3564,3195.9,3195.2,2.50374]
[1720971283474,1.57025141,3195.8,3195.2,2.50374]
[1720971283801,1.08429441,3195.7,3195.2,2.50374]
[1720971285172,1.08429441,3195.7,3195.0,2.5039]
[1720971285576,2.989287,3195.8,3195.0,2.5039]
[1720971285900,1.08432314,3195.7,3195.0,2.5039]
[1720971286210,1.49168415,3195.6,3195.0,2.5039]
[1720971286406,1.08432314,3195.5,3195.1,2.50382]
[1720971286779,0.485957,3195.8,3195.1,2.50382]
[1720971286975,1.08430925,3195.7,3195.1,2.50382]
[1720971287177,1.08430925,3195.6,3195.1,2.50382]
[1720971287481,1.08430925,3195.5,3195.1,2.50382]
[1720971288939,1.08430925,3195.5,3195.3,2.50362]
[1720971289093,2.3564,3195.9,3195.3,2.50362]
[1720971289289,1.08428852,3195.8,3195.3,2.50362]
[1720971289514,1.08428852,3195.7,3195.3,2.50362]
[1720971289710,1.08428852,3195.6,3195.1,2.50381]
[1720971289929,1.08428852,3195.5,3195.1,2.50381]
[1720971290103,0.34406885,3195.7,3195.1,2.50381]
[1720971290421,1.08430054,3195.6,3195.1,2.50381]
[1720971290626,1.08430054,3195.5,3195.1,2.50381]
[1720971290804,0.34406885,3195.7,3195.2,2.50375]
[1720971291125,1.08430345,3195.6,3195.2,2.50375]
[1720971291339,1.08430345,3195.5,3195.2,2.50375]
[1720971291521,0.34406885,3195.7,3195.2,2.50375]
[1720971291821,1.08428729,3195.6,3195.2,2.50375]
[1720971292019,3.39808729,3195.5,3195.2,2.50375]
[1720971292521,1.08434506,3195.4,3195.2,2.50375]
[1720971292824,2.3138,3195.5,3195.1,2.50381]
[1720971292990,1.08431778,3195.4,3195.1,2.50381]
[1720971293191,2.3138,3195.5,3195.1,2.50381]
[1720971293416,1.08432054,3195.4,3195.1,2.50381]
[1720971293603,2.54518,3195.5,3195.1,2.50381]
[1720971293800,1.08430486,3195.4,3195.1,2.50381]
[1720971294005,2.54518,3195.5,3195.1,2.50381]
[1720971294291,1.08431047,3195.4,3195.1,2.50381]
[1720971294492,1.08431047,3195.3,3195.1,2.50381]
[1720971294723,1.08431047,3195.4,3194.9,7.00503765]
[1720971295726,1.08443526,3195.3,3194.9,7.00503765]
[1720971296115,2.3138,3195.5,3194.9,4.50108765]
[1720971296116,1.08444731,3195.2,3194.9,4.50108765]
[1720971296315,1.08444731,3195.1,3194.9,4.50108765]
[1720971296498,1.08444731,3195.4,3194.9,4.50108765]
[1720971296691,1.92496804,3195.4,3194.8,2.50406]
[1720971296892,1.08444731,3195.3,3194.8,2.50406]
[1720971297304,1.08444731,3195.3,3194.6,25.01916]
[1720971297495,1.08444731,3195.3,3194.6,2.50416]
[1720971299003,1.08452295,3195.2,3194.6,2.50416]
[1720971299210,1.08452295,3195.1,3194.7,2.50412]
[1720971299503,1.08452295,3195.0,3194.8,2.50406]
[1720971299705,1.08452295,3194.9,3194.8,2.50406]
[1720971300326,1.08452295,3194.9,3194.8,5.508938]
[1720971300900,4.817,3195.9,3195.2,2.50374]
[1720971301118,1.08430695,3195.8,3195.2,2.50374]
[1720971301329,4.817,3195.9,3195.2,2.50374]
[1720971301532,4.817,3195.9,3195.2,2.50368]
[1720971301533,0.49127669,3195.7,3195.2,2.50368]
[1720971301736,1.08430767,3195.6,3195.3,2.50366]
[1720971301897,1.08430767,3195.5,3195.2,2.50374]
[1720971302091,1.08430767,3195.4,3195.3,2.50367]
[1720971304524,0.49127669,3195.7,3195.4,2.50359]
[1720971304725,1.08431057,3195.6,3195.4,2.50359]
[1720971305042,0.49127669,3195.7,3194.8,7.50593565]
[1720971305043,1.08431057,3195.5,3195.0,2.5039]
[1720971305217,1.08431057,3195.4,3195.2,2.50375]
[1720971305417,0.49127669,3195.7,3195.2,2.50375]
[1720971305418,1.08431057,3195.3,3195.2,2.50375]
[1720971307005,1.08431057,3195.3,3195.1,2.50375]
[1720971307203,1.08431057,3195.2,3195.1,2.50375]
[1720971307707,1.08431057,3195.2,3194.9,5.00788]
[1720971308050,1.08431057,3195.1,3195.0,2.5039]
[1720971308229,1.08431057,3195.5,3195.0,2.5039]
[1720971308428,1.08431057,3195.4,3195.0,2.5039]
[1720971308616,1.08431057,3195.5,3195.0,2.5039]
[1720971309032,1.08431057,3195.5,3194.9,2.50392]
[1720971309033,1.08431057,3195.5,3195.1,2.50382]
[1720971309837,1.08431057,3195.6,3195.3,5.00726]
[1720971310042,1.08431057,3195.5,3195.4,2.50359]
[1720971311238,1.0842183,3195.5,3195.4,2.50359]
[1720971314442,0.49127669,3195.7,3195.6,2.50344]
[1720971314618,0.49127669,3195.7,3195.6,7.42388]
[1720971314619,1.57550028,3195.7,3195.6,7.42388]
[1720971317410,0.49127669,3195.7,3195.6,7.42388]
[1720971318641,1.57531104,3195.7,3195.6,7.42388]
[1720971318837,1.57531104,3195.7,3195.6,8.416617]
[1720971319352,0.49127669,3195.7,3195.6,8.416617]
[1720971319728,0.49127669,3195.7,3195.6,10.920057]
[1720971319927,0.49127669,3195.7,3195.6,11.470057]
[1720971320243,0.49127669,3195.7,3195.6,10.920057]
[1720971320940,0.49127669,3195.7,3195.6,8.416617]
[1720971325764,0.49127669,3195.7,3195.6,10.920057]
[1720971326710,0.49127669,3195.7,3195.6,5.999617]
[1720971326983,0.49127669,3195.7,3195.6,5.00688]
[1720971328051,0.49127669,3195.7,3195.5,2.50345]
[1720971328253,0.49127669,3195.7,3195.3,5.00724]
[1720971328469,0.49127669,3195.7,3195.4,2.50358]
[1720971328969,0.49127669,3195.7,3195.6,2.50344]
[1720971330766,0.49127669,3195.7,3195.4,2.50358]
[1720971330928,0.49127669,3195.7,3195.2,2.5037]
[1720971331137,3.38148934,3195.6,3195.2,2.5037]
[1720971331374,1.08418934,3195.5,3195.2,2.5037]
[1720971331576,1.08418934,3195.5,3195.3,2.50367]
[1720971331940,0.0756916,3195.4,3195.3,2.50367]
[1720971332558,2.2973,3195.6,3195.3,2.50367]
[1720971332754,0.07534784,3195.4,3195.3,2.50367]
[1720971333272,2.2973,3195.6,3195.3,2.50367]
[1720971333459,1.15737451,3195.5,3195.4,2.50359]
[1720971333870,0.07317057,3195.5,3195.4,2.50359]
[1720971334181,1.15737294,3195.5,3195.4,2.50359]
[1720971334375,1.15737982,3195.5,3195.4,2.50359]
[1720971337175,0.07317057,3195.5,3195.4,2.50359]
[1720971337378,1.15737047,3195.5,3195.4,2.50359]
[1720971339457,1.15737047,3195.5,3195.4,3.29559]
[1720971340782,1.15734314,3195.5,3195.4,3.29559]
[1720971341476,0.07317057,3195.5,3195.4,2.50359]
[1720971341675,0.49127669,3195.7,3195.4,2.50359]
[1720971341903,1.1570825,3195.6,3195.4,2.50359]
[1720971342203,3.38149126,3195.5,3195.4,2.50359]
[1720971342697,1.15703392,3195.5,3195.4,2.50359]
[1720971343081,1.15703392,3195.5,3195.2,2.50375]
[1720971343396,1.08419126,3195.4,3195.2,2.50375]
[1720971343799,0.07292766,3195.3,3194.9,5.57399]
[1720971343959,0.07292766,3195.3,3195.0,2.50389]
[1720971343960,2.2973,3195.2,3195.0,2.50389]
[1720971344164,3.38162567,3195.2,3195.0,2.50389]
[1720971344392,1.15713956,3195.1,3194.6,2.50417]
[1720971344796,1.15713956,3195.1,3194.4,5.29308765]
[1720971344797,1.08432567,3195.0,3194.4,7.79743765]
[1720971345299,0.07266133,3194.9,3194.4,7.79743765]
[1720971345498,1.08432567,3194.8,3194.4,7.79743765]
[1720971345702,0.07245596,3194.7,3194.5,2.50428]
[1720971345865,1.08432567,3194.6,3194.5,2.50428]
[1720971346202,0.07236663,3194.6,3194.5,2.50428]
[1720971346508,3.58832453,3195.1,3194.5,2.50428]
[1720971346814,0.07236663,3194.6,3194.4,4.50108765]
[1720971347027,1.05242772,3195.0,3194.4,4.50108765]
[1720971347191,1.08451839,3194.9,3194.4,4.50108765]
[1720971347523,1.08451839,3194.8,3194.4,4.50108765]
[1720971347814,1.08451839,3194.7,3194.4,7.00545765]
[1720971348221,0.07246039,3194.6,3194.4,7.00545765]
[1720971348424,0.07246039,3194.6,3194.4,4.50108765]
[1720971348715,3.55634772,3195.0,3194.4,4.50108765]
[1720971348883,0.07240763,3194.5,3194.4,4.50108765]
[1720971349082,0.51915408,3194.9,3194.4,4.50108765]
[1720971349338,0.0723511,3194.5,3194.4,4.50108765]
[1720971349496,3.55634772,3195.0,3194.4,7.00546765]
[1720971349698,1.15709345,3194.9,3194.4,7.00546765]
[1720971349891,1.08453134,3194.8,3194.4,7.00546765]
[1720971350119,1.15698795,3194.7,3194.4,2.50438]
[1720971350321,0.07245661,3194.7,3194.4,2.50438]
[1720971350621,3.55634772,3195.0,3194.4,2.50438]
[1720971350804,1.6762669,3194.9,3194.4,2.50438]
[1720971351014,1.08453129,3194.8,3194.4,2.50438]
[1720971351213,1.08453129,3194.7,3194.4,2.50438]
[1720971351520,0.07245661,3194.7,3194.4,2.50438]
[1720971351941,3.55634772,3195.0,3194.4,2.50438]
[1720971352144,0.07240386,3194.6,3194.4,2.50438]
[1720971352442,0.0723511,3194.5,3194.4,2.50438]
[1720971352641,3.55634772,3195.0,3194.4,2.50438]
[1720971352938,1.15709284,3194.9,3194.4,2.50438]
[1720971353144,1.08453073,3194.8,3194.4,2.50438]
[1720971353519,0.07245661,3194.7,3194.4,2.50438]
[1720971353853,2.50392,3195.0,3194.4,2.50438]
[1720971354051,3.60869334,3194.9,3194.3,3.07]
[1720971354220,1.08453123,3194.8,3194.3,2.50445]
[1720971354548,0.07245661,3194.7,3194.3,2.50445]
[1720971355043,0.07240386,3194.6,3194.3,2.50445]
[1720971355253,2.4516,3194.9,3194.3,2.50445]
[1720971355418,1.15704859,3194.8,3194.3,2.50445]
[1720971355624,1.08453923,3194.7,3194.3,2.50445]
[1720971355844,0.07240386,3194.6,3194.3,2.50445]
[1720971356154,3.03654202,3194.9,3194.3,2.50445]
[1720971356313,0.0723511,3194.5,3194.3,2.50445]
[1720971356515,2.4516,3194.9,3194.3,2.50445]
[1720971356715,0.07064955,3194.4,3194.3,2.50445]
[1720971356915,3.03654202,3194.9,3194.3,2.50445]
[1720971356916,2.4516,3194.9,3194.3,2.50445]
[1720971357134,0.07064955,3194.4,3194.3,2.50445]
[1720971357317,2.4516,3194.9,3194.3,2.50445]
[1720971357649,1.08453748,3194.8,3194.3,2.50445]
[1720971357831,0.07080783,3194.7,3194.3,2.50445]
[1720971358037,1.08453748,3194.7,3194.3,2.50445]
[1720971358235,0.07075507,3194.6,3194.3,2.50445]
[1720971358543,1.08453748,3194.7,3194.3,2.50445]
[1720971358745,0.07070232,3194.5,3194.3,2.50445]
[1720971359046,0.07069696,3194.4,3194.3,2.50445]
[1720971359249,3.03654202,3194.9,3194.3,2.50445]
[1720971359454,1.15545125,3194.8,3194.3,5.00885]
[1720971359758,1.08454328,3194.7,3194.3,5.00885]
[1720971359963,1.08454328,3194.6,3194.3,5.00885]
[1720971360165,0.07068988,3194.6,3194.3,5.00885]
[1720971360463,1.08454937,3194.5,3194.3,5.00885]
[1720971360630,4.08314498,3195.2,3194.6,2.50421]
[1720971360837,1.08454771,3195.1,3194.5,2.50429]
[1720971361046,1.08454771,3195.0,3194.5,2.50429]
[1720971361437,1.08454771,3195.0,3194.6,2.50418]
[1720971361822,1.08454771,3194.9,3194.6,2.50418]
[1720971362777,0.4913727,3195.0,3194.6,2.50418]
[1720971363094,1.08449701,3194.9,3194.6,2.50418]
[1720971363257,1.08449701,3194.8,3194.6,2.50418]
[1720971363424,0.4913727,3195.0,3194.6,2.50418]
[1720971363425,1.08449701,3194.7,3194.6,2.50418]
[1720971363627,1.15495798,3194.7,3194.6,2.50418]
[1720971364530,1.15495798,3194.7,3194.6,5.0084]
[1720971364731,1.15495798,3194.7,3194.6,5.74163]
[1720971364962,1.15495798,3194.7,3194.6,5.0084]
[1720971365276,1.08449701,3194.7,3194.6,2.50418]
[1720971366179,0.4913727,3195.0,3194.7,2.50408]
[1720971366180,1.08455155,3194.9,3194.7,2.50408]
[1720971366360,1.08454853,3194.9,3194.7,2.50408]
[1720971366567,1.08454853,3194.8,3194.7,2.50408]
[1720971367285,1.15502075,3194.8,3194.7,2.50408]
[1720971367867,1.15502075,3194.8,3194.7,3.00491]
[1720971368094,0.07047222,3194.8,3194.7,9.94766]
[1720971368241,0.4913727,3195.0,3194.9,7.51197]
[1720971368443,0.4913727,3195.0,3194.9,8.30397]
[1720971371033,0.4913727,3195.0,3194.9,7.51197]
[1720971371266,0.4913727,3195.0,3194.9,5.00798]
[1720971371436,0.55664179,3195.0,3194.9,5.00798]
[1720971371631,1.64098416,3195.0,3194.9,5.00798]
[1720971371941,0.55664179,3195.0,3194.9,5.00798]
[1720971372557,1.6409693,3195.0,3194.9,5.00798]
[1720971372877,1.6409693,3195.0,3194.9,2.50399]
[1720971375332,1.64097688,3195.0,3194.9,2.50399]
[1720971375771,1.64098586,3195.0,3194.9,2.50399]
[1720971375966,1.64098586,3195.0,3194.9,5.50399]
[1720971376473,0.55664179,3195.0,3194.9,5.50399]
[1720971376640,0.55664179,3195.0,3194.9,2.50399]
[1720971378782,1.64098091,3195.0,3194.9,2.50399]
[1720971378986,1.64098498,3195.0,3194.9,2.50399]
[1720971379350,1.64098498,3195.0,3194.7,2.50412]